[Event "Elegant Academy GM Aspirant-II"]
[Site "Dhaka"]
[Date "2024.02.25"]
[Round "6.5"]
[White "Siddharth, Jagadeesh"]
[Black "Sriram, Jha"]
[Result "1-0"]
[ECO "D00"]
[WhiteElo "2457"]
[BlackElo "2317"]
[Annotator "TA"]
[PlyCount "121"]
[EventDate "2024.02.21"]
[EventType "tourn"]
[EventCountry "BAN"]
[SourceTitle "playchess.com"]
[Source "ChessBase"]
[SourceQuality "1"]
[TimeControl "5400+30"]

{[%evp 65,121,414,422,478,482,403,482,487,487,464,481,455,483,459,505,503,523,502,526,532,540,504,534,509,494,357,492,460,539,513,542,542,546,547,842,896,1009,802,987,900,860,827,788,822,883,893,930,830,1333,1323,8795,8795,8795,8795,1870,1710,29983,29984]} 1. d4 {[%emt 0:00:59]} Nf6 {[%emt 0:00:55]} 2. Nc3 {[%emt 0:00:06]} d5 {[%emt 0:01:10]} 3. Bf4 {[%emt 0:00:12]} g6 {[%emt 0:02:47]} 4. e3 {[%emt 0:00:07]} Bg7 {[%emt 0:00:06]} 5. h4 {[%emt 0:00:12]} h5 {[%emt 0:00:37]} 6. Nf3 {[%emt 0:00:08] D00: 1 d4 d5: Unusual lines.} O-O {[%emt 0:01:05]} 7. Ne5 {[%emt 0:00:05]} c5 {[%emt 0:00:04]} 8. Qd2 {[%emt 0:00:08]} Nc6 {[%emt 0:01:53]} 9. f3 {[%emt 0:00:10]} cxd4 {[%emt 0:06:18]} 10. exd4 {[%emt 0:00:11]} Bf5 {[%emt 0:00:02]} 11. Bb5 {[%emt 0:00:10]} Rc8 {[%emt 0:07:45]} 12. Bxc6 {[%emt 0:00:08]} bxc6 {[%emt 0:00:05]} 13. Na4 {[%emt 0:00:07]} Nd7 {[%emt 0:06:10]} 14. Nxd7 {[%emt 0:00:08]} Bxd7 {[%emt 0:02:02]} 15. Nc5 {[%emt 0:00:06]} e5 $146 {[%emt 0:10:46]} ({Predecessor:} 15... f6 16. O-O-O e5 17. Bh6 Rc7 18. Rde1 Re8 19. Re2 Bc8 20. Rhe1 Qd6 21. Bxg7 Kxg7 22. dxe5 fxe5 23. Rxe5 Rxe5 {0-1 Vaishali,R (2497)-Munkhzul,T (2258) Wch Blitz (Women) 2023 (7)}) 16. Bxe5 {[%emt 0:03:07]} Re8 {[%emt 0:06:54]} 17. O-O-O {[%emt 0:01:10]} Bxe5 {[%emt 0:00:11]} 18. dxe5 {[%emt 0:00:05]} Rxe5 {[%emt 0:00:03]} 19. Qd4 {[%emt 0:01:14]} Rf5 {[%emt 0:04:03]} 20. Rd3 {[%emt 0:07:43]} Qc7 {[%emt 0:04:11]} 21. g3 {[%emt 0:08:39]} Re8 {[%emt 0:18:13]} 22. f4 {[%emt 0:00:33]} Bc8 {[%emt 0:00:03]} 23. Re3 {[%emt 0:05:30]} Rxe3 {[%emt 0:03:51]} 24. Qxe3 {[%emt 0:00:30]} d4 {[%emt 0:00:35]} 25. Qxd4 {[%emt 0:00:20]} Rd5 {[%emt 0:01:08]} 26. Qc3 {[%emt 0:00:06]} Bf5 {[%emt 0:04:55]} 27. Re1 {[%emt 0:00:20]} Rd8 {[%emt 0:02:01]} 28. b3 {[%emt 0:02:16]} Qd6 {[%emt 0:04:11]} 29. Kb2 {[%emt 0:00:14]} Rc8 {[%emt 0:00:26]} 30. Ne4 {[%emt 0:01:34]} Bxe4 {[%emt 0:01:35]} 31. Rxe4 {[%emt 0:00:03]} c5 {[%emt 0:00:03]} 32. Rc4 {[%emt 0:00:41]} Rc7 {[%emt 0:01:28]} 33. Re4 {[%emt 0:03:09]} Re7 {[%emt 0:02:01]} 34. Rxe7 {[%emt 0:04:22]} Qxe7 {[%emt 0:00:01]} 35. Qe5 {[%emt 0:00:09]} Qf8 {[%emt 0:00:17]} 36. Qc7 {[%emt 0:02:08]} a6 {[%emt 0:10:35]} 37. Ka3 {[%emt 0:02:47]} Kg7 {[%emt 0:00:00]} 38. c4 {[%emt 0:00:42]} Kg8 {[%emt 0:00:00]} 39. Qc6 {[%emt 0:06:30]} Qe7 {[%emt 0:00:00]} 40. Qxa6 {[%emt 0:00:38]} Qe3 {[%emt 0:00:00]} 41. Qa8+ {[%emt 0:00:24]} Kg7 {[%emt 0:00:00]} 42. Qg2 {[%emt 0:00:50]} Qe1 {[%emt 0:00:00]} 43. Kb2 {[%emt 0:00:07]} Kg8 {[%emt 0:00:00]} 44. Qa8+ {[%emt 0:00:31]} Kg7 {[%emt 0:00:00]} 45. Qf3 {[%emt 0:01:46]} Qd2+ {[%emt 0:00:00]} 46. Kb1 {[%emt 0:00:03]} Kg8 {[%emt 0:00:00]} 47. a4 {[%emt 0:02:27]} Kg7 {[%emt 0:00:57]} 48. Qe4 {[%emt 0:00:08]} Kf8 {[%emt 0:02:03]} 49. Qe5 {[%emt 0:02:39]} Qf2 {[%emt 0:01:57]} 50. a5 {[%emt 0:00:32]} Qxg3 {[%emt 0:00:12]} 51. Kb2 {[%emt 0:01:56]} (51. Qxc5+ Kg8 52. Qb6 Qd3+ 53. Kb2 Qe2+ 54. Ka3 Qe7+ 55. c5 Qe1) 51... Qg2+ {[%emt 0:01:22]} 52. Ka3 {[%emt 0:00:28]} Qc6 {[%emt 0:00:11]} 53. Qb8+ {[%emt 0:01:31]} Kg7 {[%emt 0:00:08]} 54. Qb6 {[%emt 0:00:14]} Qh1 {[%emt 0:00:37]} 55. Qxc5 {[%emt 0:00:39]} Qc1+ {[%emt 0:01:12]} 56. Ka4 {[%emt 0:01:15]} Qxf4 {[%emt 0:00:09]} 57. a6 {[%emt 0:00:10]} Qxh4 {[%emt 0:01:01]} 58. a7 {[%emt 0:01:03]} Qh1 {[%emt 0:00:05]} 59. Qe5+ {[%emt 0:00:21]} Kh7 {[%emt 0:00:15]} 60. Qb8 {[%emt 0:00:11]} Qc6+ {[%emt 0:00:14]} 61. Kb4 {[%emt 0:00:08]} 1-0

[Event "Elegant Academy GM Aspirant-II"]
[Site "Dhaka"]
[Date "2024.02.25"]
[Round "7.1"]
[White "Sriram, Jha"]
[Black "Aradhya, Garg"]
[Result "1/2-1/2"]
[ECO "D11"]
[WhiteElo "2317"]
[BlackElo "2390"]
[Annotator "TA"]
[PlyCount "75"]
[EventDate "2024.02.21"]
[EventType "tourn"]
[EventCountry "BAN"]
[SourceTitle "playchess.com"]
[Source "ChessBase"]
[SourceQuality "1"]
[TimeControl "5400+30"]

{[%evp 10,75,0,0,0,0,0,0,0,0,0,0,0,0,0,0,0,0,0,0,-10,-27,-20,-24,-18,-9,-18,-25,-16,-16,-17,-17,-21,-29,-28,-27,-18,-47,-49,-43,-40,-39,-19,-42,0,0,0,0,0,0,0,0,0,0,22,0,0,0,58,-8,0,0,0,3,6,4,6,0]} 1. d4 {[%emt 0:01:17]} d5 {[%emt 0:00:02]} 2. Nf3 {[%emt 0:00:20]} Nf6 {[%emt 0:00:02]} 3. g3 {[%emt 0:00:28]} c6 {[%emt 0:06:08]} 4. Bg2 {[%emt 0:00:16]} Bf5 {[%emt 0:00:02]} 5. c4 {[%emt 0:02:00]} e6 {[%emt 0:00:12]} 6. Nc3 {[%emt 0:00:52]} Be7 {[%emt 0:01:43]} 7. Qb3 {[%emt 0:07:04]} Qb6 {[%emt 0:03:37]} 8. c5 {[%emt 0:00:22]} Qxb3 {[%emt 0:00:14]} 9. axb3 {[%emt 0:00:02]} Na6 {[%emt 0:00:19]} 10. Ne5 {[%emt 0:06:42][%cal Oe5c6] Strongly threatening Nxc6!} Nb4 {[%emt 0:01:50] [#] aiming for ...Nc2+.} 11. Ra4 {[%emt 0:00:30]} a5 {[%emt 0:02:35]} 12. O-O {[%emt 0:02:35]} Nd7 {[%emt 0:05:48]} 13. Nxd7 {[%emt 0:09:13]} Kxd7 {[%emt 0:00:02]} 14. Bd2 {[%emt 0:00:10]} e5 {[%emt 0:05:32]} 15. e4 {[%emt 0:05:44]} exd4 {[%emt 0:04:28]} 16. Nxd5 {[%emt 0:16:47]} cxd5 {[%emt 0:05:03]} 17. exf5 {[%emt 0:00:26]} Bxc5 {[%emt 0:11:43]} 18. Bxb4 {[%emt 0:00:56]} Bxb4 {[%emt 0:00:11]} 19. Rd1 $1 {[%emt 0:02:58]} Kc6 {[%emt 0:21:51]} 20. Rxd4 {[%emt 0:00:39]} Rae8 {[%emt 0:04:00]} 21. Ra1 {[%emt 0:14:57]} (21. Rxd5 $2 {perishes.} Re1+ 22. Bf1 Kxd5 $19) 21... Re5 $1 {[%emt 0:00:15]} 22. Rad1 {[%emt 0:01:39]} Rd8 {[%emt 0:00:15][%cal Ob4c5]} 23. Kf1 {[%emt 0:07:20]} (23. Rc4+ {feels hotter.} Bc5 24. b4 axb4 25. Rdc1) 23... Bc5 {[%emt 0:01:19]} 24. Rf4 {[%emt 0:03:42]} Kb6 {[%emt 0:00:39]} 25. g4 {[%emt 0:00:19]} d4 {[%emt 0:02:15]} 26. Be4 {[%emt 0:00:13]} Ree8 {[%emt 0:05:10]} 27. Bd3 {[%emt 0:00:21]} Bd6 {[%emt 0:01:23]} 28. Rxd4 {[%emt 0:02:43][%cal Od3b5]} Bxh2 {[%emt 0:00:14]} 29. Bc4 {[%emt 0:00:21][%csl LRd8,LRf7]} Rxd4 {[%emt 0:00:24]} 30. Rxd4 $11 {[%emt 0:00:01][%mdl 4096] Endgame. KRB-KRB} Re7 {[%emt 0:01:14]} 31. f4 {[%emt 0:05:40] [#] Hoping for Kg2.} Bg3 {[%emt 0:00:59]} (31... Kc6 $5) 32. Kg2 {[%emt 0:09:53]} (32. f6 $5 gxf6 33. Kg2 $18) 32... Bh4 33. Rd5 {[%emt 0:00:00]} Be1 {[%emt 0:17:31]} ({Black should try} 33... Re3 $11) 34. Rd4 (34. f6 $14 gxf6 35. Rd6+ Kc5 36. Rxf6) 34... Bh4 {[%emt 0:00:30] The position is equal.} 35. g5 f6 {[%emt 0:00:30]} 36. g6 hxg6 {[%emt 0:00:30]} 37. fxg6 {[%emt 0:02:30]} f5 {[%emt 0:00:30]} 38. Rd6+ {[%emt 0:00:30] Weighted Error Value: White=0.07 (flawless) /Black=0.06 (flawless) .  Mistake:       	White=1     	Black=1      Inaccurate:     	White=1     	Black=1      OK:         	White=16    	Black=19     Strong:       	White=1     	Black=1} 1/2-1/2

[Event "Elegant Academy GM Aspirant-II"]
[Site "Dhaka"]
[Date "2024.02.25"]
[Round "7.2"]
[White "Panesar Vedant"]
[Black "Siddharth, Jagadeesh"]
[Result "1-0"]
[ECO "C10"]
[WhiteElo "2452"]
[BlackElo "2457"]
[Annotator "ChessBase"]
[PlyCount "107"]
[EventDate "2024.02.21"]
[EventType "tourn"]
[EventCountry "BAN"]
[SourceTitle "playchess.com"]
[Source "ChessBase"]
[SourceQuality "1"]
[TimeControl "5400+30"]

1. e4 {[%emt 0:00:11]} e6 {[%emt 0:01:02]} 2. d4 {[%emt 0:00:05]} d5 {[%emt 0:00:05]} 3. Nc3 {[%emt 0:00:03]} dxe4 {[%emt 0:00:07]} 4. Nxe4 {[%emt 0:00:04]} Nd7 {[%emt 0:00:07]} 5. Nf3 {[%emt 0:00:04]} Ngf6 {[%emt 0:00:13]} 6. Nxf6+ {[%emt 0:00:05]} Nxf6 {[%emt 0:00:08]} 7. c3 {[%emt 0:00:01]} Be7 {[%emt 0:00:23]} 8. Bd3 {[%emt 0:02:19]} c5 {[%emt 0:00:08]} 9. Qe2 {[%emt 0:00:11]} O-O {[%emt 0:01:53]} 10. Bf4 {[%emt 0:00:05]} cxd4 {[%emt 0:03:49]} 11. Nxd4 {[%emt 0:00:12]} Qa5 {[%emt 0:00:08]} 12. O-O {[%emt 0:00:25]} Qh5 {[%emt 0:02:56]} 13. Rad1 {[%emt 0:03:17]} Bd7 {[%emt 0:01:55]} 14. h3 {[%emt 0:02:39]} Rfd8 {[%emt 0:03:04]} 15. Bc7 {[%emt 0:03:59]} Rdc8 {[%emt 0:01:56]} 16. Qxh5 {[%emt 0:00:29]} Nxh5 {[%emt 0:00:08]} 17. Bh2 {[%emt 0:00:08]} Nf6 {[%emt 0:01:40]} 18. Be2 {[%emt 0:01:26]} Bc5 {[%emt 0:14:31]} 19. Bf3 {[%emt 0:00:52]} Bxd4 {[%emt 0:00:10]} 20. Rxd4 {[%emt 0:00:20]} Bc6 {[%emt 0:00:06]} 21. Bxc6 {[%emt 0:02:19]} Rxc6 {[%emt 0:00:04]} 22. Rfd1 {[%emt 0:00:08]} Kf8 {[%emt 1:06:57]} 23. c4 {[%emt 0:00:45]} Rac8 {[%emt 0:00:00]} 24. b3 {[%emt 0:00:45]} Ke8 {[%emt 0:00:00]} 25. g4 {[%emt 0:02:18]} h6 {[%emt 0:00:00]} 26. Kg2 {[%emt 0:01:12]} a6 {[%emt 0:00:00]} 27. a4 {[%emt 0:12:50]} b5 {[%emt 0:00:00]} 28. cxb5 {[%emt 0:01:14]} axb5 {[%emt 0:00:00]} 29. axb5 {[%emt 0:00:12]} Rb6 {[%emt 0:00:00]} 30. Rc4 {[%emt 0:01:05]} Ra8 {[%emt 0:00:00]} 31. Be5 {[%emt 0:02:57]} Rxb5 {[%emt 0:00:00]} 32. Bxf6 {[%emt 0:00:20]} gxf6 {[%emt 0:00:00]} 33. Rc7 {[%emt 0:00:31]} h5 {[%emt 0:00:00]} 34. Rdd7 {[%emt 0:03:51]} hxg4 {[%emt 0:00:00]} 35. Re7+ {[%emt 0:05:07]} Kd8 {[%emt 0:00:00]} 36. hxg4 {[%emt 0:05:54]} f5 {[%emt 0:00:00]} 37. Rxf7 {[%emt 0:17:18]} fxg4 {[%emt 0:00:00]} 38. Rfd7+ {[%emt 0:00:34]} Ke8 {[%emt 0:00:00]} 39. Rh7 {[%emt 0:02:21]} Rf5 {[%emt 0:00:00]} 40. Rb7 {[%emt 0:01:43]} g3 {[%emt 0:00:00]} 41. fxg3 {[%emt 0:05:54]} e5 {[%emt 0:00:00]} 42. g4 {[%emt 0:01:10]} Rf8 {[%emt 0:00:00]} 43. g5 {[%emt 0:02:14]} e4 {[%emt 0:00:00]} 44. Kg3 {[%emt 0:04:48]} e3 {[%emt 0:00:00]} 45. Rbe7+ {[%emt 0:00:24]} Kd8 {[%emt 0:00:00]} 46. Rxe3 {[%emt 0:00:09]} Ra1 {[%emt 0:00:00]} 47. Kg4 {[%emt 0:00:53]} Rg8 {[%emt 0:00:00]} 48. Rd3+ {[%emt 0:00:28]} Ke8 {[%emt 0:00:00]} 49. Re3+ {[%emt 0:00:11]} Kf8 {[%emt 0:00:00]} 50. Rf3+ {[%emt 0:00:43]} Ke8 {[%emt 0:00:00]} 51. Rg3 {[%emt 0:00:18]} Kd8 {[%emt 0:00:00]} 52. Rb7 {[%emt 0:00:45]} Kc8 {[%emt 0:00:00]} 53. Rf7 {[%emt 0:00:10]} Ra6 {[%emt 0:00:00]} 54. Rgf3 {[%emt 0:00:24]} 1-0

[Event "Elegant Academy GM Aspirant-II"]
[Site "Dhaka"]
[Date "2024.02.25"]
[Round "7.3"]
[White "Setyaki, Azarya Jodi"]
[Black "Murshed, Niaz"]
[Result "1/2-1/2"]
[ECO "C02"]
[WhiteElo "2400"]
[BlackElo "2363"]
[Annotator "ChessBase"]
[PlyCount "62"]
[EventDate "2024.02.21"]
[EventType "tourn"]
[EventCountry "BAN"]
[SourceTitle "playchess.com"]
[Source "ChessBase"]
[SourceQuality "1"]
[TimeControl "5400+30"]

1. e4 {[%emt 0:00:55]} e6 {[%emt 0:01:25]} 2. d4 {[%emt 0:00:14]} d5 {[%emt 0:00:15]} 3. e5 {[%emt 0:00:04]} c5 {[%emt 0:00:11]} 4. c3 {[%emt 0:00:06]} Nc6 {[%emt 0:00:07]} 5. Nf3 {[%emt 0:00:06]} Bd7 {[%emt 0:00:22]} 6. Be2 {[%emt 0:00:10]} Nge7 {[%emt 0:01:18]} 7. Na3 {[%emt 0:00:15]} cxd4 {[%emt 0:02:02]} 8. cxd4 {[%emt 0:00:06]} Nf5 {[%emt 0:01:30]} 9. Nc2 {[%emt 0:00:05]} Qb6 {[%emt 0:00:37]} 10. O-O {[%emt 0:00:31]} Na5 {[%emt 0:01:20]} 11. Ne3 {[%emt 0:08:20]} Nxe3 {[%emt 0:06:04]} 12. fxe3 {[%emt 0:01:21]} Be7 {[%emt 0:00:13]} 13. Qe1 {[%emt 0:02:25]} O-O {[%emt 0:04:36]} 14. Bd3 {[%emt 0:15:32]} f5 {[%emt 0:06:20]} 15. exf6 {[%emt 0:00:56]} Bxf6 {[%emt 0:00:42]} 16. Bd2 {[%emt 0:00:15]} Nc6 {[%emt 0:02:14]} 17. Bc3 {[%emt 0:00:12]} a5 {[%emt 0:04:53]} 18. Rd1 {[%emt 0:01:56]} Ne7 {[%emt 0:11:22]} 19. e4 {[%emt 0:02:52]} g6 {[%emt 0:10:53]} 20. e5 {[%emt 0:02:42]} Bg7 {[%emt 0:00:02]} 21. Kh1 {[%emt 0:00:49]} Bb5 {[%emt 0:02:58]} 22. Bxb5 {[%emt 0:02:22]} Qxb5 {[%emt 0:00:06]} 23. Ng5 {[%emt 0:00:19]} Qa6 {[%emt 0:01:23]} 24. Rxf8+ {[%emt 0:01:22]} Rxf8 {[%emt 0:00:20]} 25. Bxa5 {[%emt 0:00:29]} Bh6 {[%emt 0:02:38]} 26. Nf3 {[%emt 0:01:24]} Nf5 {[%emt 0:04:51]} 27. Bd2 {[%emt 0:05:40]} Bxd2 {[%emt 0:01:31]} 28. Qxd2 {[%emt 0:00:12]} Qxa2 {[%emt 0:00:21]} 29. Rf1 {[%emt 0:10:26]} Nh4 {[%emt 0:03:31]} 30. Kg1 {[%emt 0:02:05]} Nxf3+ {[%emt 0:01:36]} 31. Rxf3 {[%emt 0:41:49]} Rxf3 {[%emt 0:00:36]} 1/2-1/2

[Event "Elegant Academy GM Aspirant-II"]
[Site "Dhaka"]
[Date "2024.02.25"]
[Round "7.4"]
[White "Mayank Chakraborty"]
[Black "Liyanage, Ranindu Dilshan"]
[Result "1/2-1/2"]
[ECO "D35"]
[WhiteElo "2409"]
[BlackElo "2366"]
[Annotator "TA"]
[PlyCount "71"]
[EventDate "2024.02.21"]
[EventType "tourn"]
[EventCountry "BAN"]
[SourceTitle "playchess.com"]
[Source "ChessBase"]
[SourceQuality "1"]
[TimeControl "5400+30"]

{[%evp 15,71,19,18,23,24,22,39,29,32,40,39,25,31,18,27,32,27,0,0,0,0,-29,-26,-42,-33,-32,-33,-61,-67,-63,-61,-56,-61,-57,-36,-44,-44,-45,-30,-76,-71,-120,-104,-188,-175,-438,-435,-421,-319,-283,-135,-225,-158,-167,-175,-164,-86,-160]} 1. d4 {[%emt 0:00:20]} d5 {[%emt 0:01:20]} 2. c4 {[%emt 0:00:53]} e6 {[%emt 0:00:16]} 3. Nc3 {[%emt 0:00:06]} Nf6 {[%emt 0:00:15]} 4. cxd5 {[%emt 0:00:05]} exd5 {[%emt 0:00:06]} 5. Bg5 {[%emt 0:00:05][%cal Bc1g5,Bg5h4,Bh4g3][%mdl 32]} c6 {[%emt 0:00:20]} 6. e3 {[%emt 0:00:10]} h6 {[%emt 0:00:08]} 7. Bh4 {[%emt 0:00:14]} Be7 {[%emt 0:00:07]} 8. Bd3 {[%emt 0:00:08]} O-O {[%emt 0:00:08]} 9. Nge2 {[%emt 0:00:06]} Ne8 {[%emt 0:00:24]} 10. Bg3 {[%emt 0:01:17]} Nd6 {[%emt 0:00:07]} 11. Qc2 {[%emt 0:00:52] White is slightly better.} Re8 {[%emt 0:00:16]} 12. O-O {[%emt 0:00:14]} Bf8 {[%emt 0:00:13]} 13. Rae1 {[%emt 0:02:56]} a5 {[%emt 0:00:22]} 14. Nf4 {[%emt 0:05:35]} Na6 {[%emt 0:00:46]} 15. a3 {[%emt 0:00:21]} Bd7 {[%emt 0:05:05]} 16. f3 {[%emt 0:01:59]} b5 {[%emt 0:09:31]} 17. Nb1 {[%emt 0:17:55]} Rc8 {[%emt 0:05:01]} 18. Qd2 {[%emt 0:11:20]} Bf5 {[%emt 0:07:02]} 19. Nc3 {[%emt 0:06:40]} Bxd3 {[%emt 0:05:07]} 20. Qxd3 {[%emt 0:03:08]} Nc4 {[%emt 0:00:52]} 21. Nd1 {[%emt 0:02:19]} a4 {[%emt 0:05:48]} 22. e4 {[%emt 0:02:50]} b4 {[%emt 0:07:03][%cal Rb4a3]} 23. Ne3 {[%emt 0:04:34]} Nxe3 {[%emt 0:02:33]} 24. Rxe3 {[%emt 0:02:17]} Qb6 {[%emt 0:00:49]} 25. Bf2 {[%emt 0:04:06]} Nc7 {[%emt 0:04:04]} 26. axb4 $1 {[%emt 0:04:35]} Qxb4 {[%emt 0:01:49]} 27. Re2 {[%emt 0:01:33]} (27. Qd1 $11) 27... Bd6 $1 $17 {[%emt 0:04:15]} 28. e5 {[%emt 0:01:57]} ({Better is} 28. Qe3) 28... Bxe5 $1 {[%emt 0:02:15]} 29. Nh5 {[%emt 0:02:11]} (29. dxe5 $17 {is a better defense.} Qxf4 30. Ra1) 29... Bd6 $19 {[%emt 0:07:49] Hoping for ...Rxe2.} 30. Qf5 $2 {[%emt 0:01:14]} (30. Rc2 {was called for.}) 30... Rxe2 {[%emt 0:04:31]} 31. Qxc8+ {[%emt 0:00:09]} Ne8 {[%emt 0:00:34]} 32. Qxc6 {[%emt 0:02:28] [#]} Qc4 {[%emt 0:00:34]} (32... Qxb2 33. Qxa4 g6 34. Ng3 Bxg3 35. hxg3 $11) (32... Kf8 $1 $19 {has better winning chances.} 33. Bg3 Rxb2 (33... Qxd4+ $2 34. Kh1 $19) 34. Bxd6+ Nxd6 35. Qxd5 a3 36. Qa8+ Ne8) 33. Qd7 {[%emt 0:07:03]} (33. Qxc4 $17 dxc4 34. Re1 Rxe1+ 35. Bxe1) 33... Re7 {[%emt 0:02:10]} 34. Qd8 {[%emt 0:00:29]} Kf8 {[%emt 0:03:41]} 35. Ng3 {[%emt 0:01:01] [#]} g6 {[%emt 0:04:02] Against Nf5} (35... Bc7 $1 $19 {[%cal Rc7d8]} 36. Qa8 Re6) 36. Qa5 {[%emt 0:03:29] Weighted Error Value: White=0.36/Black=0.19 (very precise) .  Mistake:       	White=6     	Black=2      Inaccurate:     	White=3     	---        OK:         	White=8     	Black=5      Best:        	White=2     	Black=4      Strong:       	White=1     	Black=2} (36. Ra1 $142) 1/2-1/2

[Event "Elegant Academy GM Aspirant-II"]
[Site "Dhaka"]
[Date "2024.02.25"]
[Round "7.5"]
[White "Mohammad Fahad, Rahman"]
[Black "Rahman, Ziaur"]
[Result "1-0"]
[ECO "B51"]
[WhiteElo "2418"]
[BlackElo "2428"]
[Annotator "TA"]
[PlyCount "99"]
[EventDate "2024.02.21"]
[EventType "tourn"]
[EventCountry "BAN"]
[SourceTitle "playchess.com"]
[Source "ChessBase"]
[SourceQuality "1"]
[TimeControl "5400+30"]

{[%evp 19,99,10,5,3,8,4,16,0,20,12,7,0,14,-8,-9,-14,10,0,0,0,8,0,15,6,58,56,54,56,68,72,64,58,57,64,62,68,65,23,26,32,31,30,52,54,47,50,52,50,73,75,78,70,79,73,116,103,175,72,231,242,279,280,376,355,312,374,526,516,685,369,5820,5824,29985,29986,29988,29989,29989,29990,29992,29993,29993,29994]} 1. e4 {[%emt 0:01:09]} c5 {[%emt 0:00:51]} 2. Nf3 {[%emt 0:00:06]} Nc6 {[%emt 0:00:40]} 3. Bb5 {[%emt 0:00:16]} d6 {[%emt 0:00:14]} 4. O-O {[%emt 0:02:35]} Bd7 {[%emt 0:00:30]} 5. c3 {[%emt 0:02:39]} a6 {[%emt 0:01:22]} 6. Ba4 {[%emt 0:05:01]} Nf6 {[%emt 0:01:48]} 7. d3 {[%emt 0:01:04] B51: Sicilian: Moscow Variation (3 Bb5+) without 3...Bd7.} e5 {[%emt 0:02:15]} 8. Re1 {[%emt 0:00:46]} Be7 {[%emt 0:00:27]} 9. h3 {[%emt 0:02:45]} O-O {[%emt 0:00:53]} 10. Nbd2 {[%emt 0:00:36]} b5 {[%emt 0:06:26]} 11. Bc2 {[%emt 0:05:42]} Qc7 {[%emt 0:01:31]} 12. Nf1 {[%emt 0:01:12]} d5 {[%emt 0:02:45]} 13. Ne3 {[%emt 0:05:27]} d4 $146 {[%emt 0:16:58]} ({Predecessor:} 13... Be6 14. exd5 Nxd5 15. Ng5 Bxg5 16. Nxd5 Qd8 17. Nc7 Bxc1 18. Nxe6 fxe6 19. Qxc1 Qd6 {½-½ Glodeanu,I (2311)-Burnoiu,N (2353) Bucharest2 2000 (10)}) 14. Nd5 {[%emt 0:01:59]} Qd6 {[%emt 0:01:27]} 15. Bg5 {[%emt 0:00:09]} Rae8 {[%emt 0:04:32]} 16. Bxf6 {[%emt 0:03:03]} Bxf6 {[%emt 0:01:17]} 17. a4 {[%emt 0:00:46]} dxc3 {[%emt 0:02:29]} 18. axb5 {[%emt 0:04:15]} axb5 {[%emt 0:00:53]} 19. bxc3 {[%emt 0:00:02]} Bd8 {[%emt 0:06:24]} 20. Bb3 {[%emt 0:02:16]} Kh8 {[%emt 0:05:45]} 21. Ne3 {[%emt 0:09:47]} g6 {[%emt 0:02:47]} (21... Ba5 $11 22. Qc2 f6) 22. Bd5 {[%emt 0:01:28]} Ne7 {[%emt 0:01:47]} 23. d4 {[%emt 0:03:02]} exd4 {[%emt 0:01:27]} 24. cxd4 {[%emt 0:00:22]} Nxd5 {[%emt 0:00:38]} 25. dxc5 {[%emt 0:00:23]} Qxc5 {[%emt 0:00:16]} 26. Nxd5 {[%emt 0:00:15]} Be6 {[%emt 0:00:44]} 27. Rc1 {[%emt 0:02:39]} Qa7 {[%emt 0:00:57]} 28. Nd4 {[%emt 0:05:49]} Bxd5 {[%emt 0:03:13]} 29. Nxb5 {[%emt 0:05:14]} Qb8 {[%emt 0:01:09]} 30. Qxd5 {[%emt 0:01:21]} Re5 {[%emt 0:04:34]} 31. Qd6 {[%emt 0:01:10]} Qxd6 {[%emt 0:08:00]} 32. Nxd6 {[%emt 0:00:05]} Be7 {[%emt 0:00:21]} 33. Nc4 {[%emt 0:01:31]} Rc5 {[%emt 0:00:40]} 34. Nb6 {[%emt 0:00:05]} Rb5 {[%emt 0:01:06]} 35. Nd5 {[%emt 0:00:23]} Bg5 {[%emt 0:00:33]} 36. Rc7 {[%emt 0:00:17]} Re8 {[%emt 0:03:28]} 37. Rd7 {[%emt 0:00:40]} (37. Rxf7 $2 Rxd5 38. Ra1 Rde5 $19 (38... Rxe4 39. Ra8+ Bd8 40. Rf8+ Kg7 41. Rfxd8 $11)) 37... Ra5 {[%emt 0:00:53]} (37... Rf8 $16 {keeps fighting.} 38. g3 Kg7) 38. f3 {[%emt 0:02:38]} (38. Rxf7 $2 Rxd5 39. g3 Kg8 $17) (38. h4 $18 {and White stays clearly on top.} Bxh4 39. g3 (39. Rxf7 $2 {perishes.} Rxd5 40. g3 Bd8 $19)) 38... Rb8 $2 {[%emt 0:03:45]} (38... Kg7 $16) 39. Rxf7 $18 {[%emt 0:03:19]} Rb2 {[%emt 0:03:19]} 40. Kh1 {[%emt 0:00:56]} Raa2 {[%emt 0:00:52]} 41. Rg1 {[%emt 0:00:15]} Kg8 {[%emt 0:00:49]} 42. Rd7 {[%emt 0:00:25]} Bh4 {[%emt 0:00:40]} (42... Re2 $142 43. Rb1 Rab2 44. Rxb2 Rxb2) 43. e5 $18 {[%emt 0:01:40]} Re2 {[%emt 0:01:57]} 44. f4 {[%emt 0:07:12]} h5 $2 {[%emt 0:00:04]} (44... Be1 45. Nf6+ Kf8 46. Nxh7+ Ke8) 45. Rc1 $18 {[%emt 0:03:17]} Ra8 {[%emt 0:01:11]} 46. Rcc7 {[%emt 0:01:43]} Bd8 {[%emt 0:00:29]} 47. Nf6+ {[%emt 0:00:22]} Bxf6 {[%emt 0:00:13]} 48. exf6 {[%emt 0:00:02]} Re6 {[%emt 0:01:05]} 49. Rg7+ {[%emt 0:00:09]} Kf8 {[%emt 0:00:01]} 50. Rh7 {[%emt 0:00:48]} 1-0